[Event "LEM Sachsen-Anhalt Masters 2024"]
[Site "Merseburg"]
[Date "2024.02.09"]
[Round "3.5"]
[White "Daub, Sebastian"]
[Black "Lippert, Daniel"]
[Result "0-1"]
[ECO "D04"]
[WhiteElo "1967"]
[BlackElo "2034"]
[Annotator "NA RC"]
[PlyCount "48"]
[EventDate "2024.02.01"]
[EventType "swiss"]
[EventCountry "GER"]
[SourceTitle "playchess.com"]
[Source "ChessBase"]
[SourceQuality "1"]
[TimeControl "40/5400+30:1800+30"]

1. d4 {[%emt 0:00:05]} d5 {[%emt 0:02:35]} 2. Nf3 {[%emt 0:00:13]} Nf6 {[%emt 0:00:34]} 3. c3 {[%emt 0:00:18]} Bf5 {[%emt 0:01:07]} 4. e3 {[%emt 0:00:09]} e6 {[%emt 0:00:55]} 5. Bd3 {[%emt 0:00:06]} c6 {[%emt 0:04:35]} 6. O-O {[%emt 0:01:39]} Nbd7 {[%emt 0:00:51]} 7. Bxf5 {[%emt 0:05:31]} exf5 {[%emt 0:00:06]} 8. a4 {[%emt 0:03:38]} Bd6 {[%emt 0:01:12]} 9. b3 {[%emt 0:02:18]} Ne4 {[%emt 0:01:04]} 10. Qd3 {[%emt 0:00:59]} g5 {[%emt 0:33:17]} 11. Ba3 {[%emt 0:04:52]} g4 {[%emt 0:00:04]} 12. Bxd6 {[%emt 0:15:53]} gxf3 {[%emt 0:02:32]} ({But not} 12... Nxd6 $6 13. Ne1 $11) 13. Bg3 $1 {[%emt 0:00:55]} fxg2 {[%emt 0:03:26]} 14. Kxg2 {[%emt 0:01:05]} Rg8 $11 {[%emt 0:05:35]} 15. Qe2 {[%emt 0:05:29]} Ndf6 {[%emt 0:14:15]} 16. Qf3 {[%emt 0:05:42]} Qd7 {[%emt 0:00:04]} 17. Ra2 {[%emt 0:01:02]} Rg4 {[%emt 0:01:34]} 18. h3 {[%emt 0:01:42]} Rg6 {[%emt 0:07:58]} 19. Kh2 {[%emt 0:05:42]} Ng5 {[%emt 0:04:36]} 20. Qf4 {[%emt 0:07:45]} Nh5 {[%emt 0:00:58]} 21. Qe5+ {[%emt 0:00:49]} Kf8 {[%emt 0:00:44]} 22. Nd2 {[%emt 0:01:58]} f4 {[%emt 0:02:05]} 23. exf4 {[%emt 0:03:48]} Qxh3+ {[%emt 0:00:09]} 24. Kg1 {[%emt 0:00:07]} Nxg3 {[%emt 0:00:08]} 0-1

[Event "LEM Sachsen-Anhalt Masters 2024"]
[Site "Merseburg"]
[Date "2024.02.09"]
[Round "3.6"]
[White "Noennig, Jakob"]
[Black "Schulz, Maximilian"]
[Result "1-0"]
[ECO "B06"]
[WhiteElo "1789"]
[BlackElo "1896"]
[Annotator "NA RC"]
[PlyCount "81"]
[EventDate "2024.02.01"]
[EventType "swiss"]
[EventCountry "GER"]
[SourceTitle "playchess.com"]
[Source "ChessBase"]
[SourceQuality "1"]
[TimeControl "40/5400+30:1800+30"]

1. e4 {[%emt 0:00:02]} d6 {[%emt 0:00:04]} 2. d4 {[%emt 0:00:09]} Nf6 {[%emt 0:00:03]} 3. Nc3 {[%emt 0:00:57]} g6 {[%emt 0:00:04]} 4. Nf3 {[%emt 0:04:33]} c6 {[%emt 0:01:02]} 5. a4 {[%emt 0:03:04]} Bg7 {[%emt 0:00:15]} 6. Bd3 {[%emt 0:01:47]} Qc7 {[%emt 0:01:53]} 7. O-O {[%emt 0:02:32]} O-O {[%emt 0:00:13]} 8. Bf4 {[%emt 0:07:36]} Nh5 {[%emt 0:04:27]} (8... Nbd7 $11) 9. Be3 {[%emt 0:01:51]} e5 {[%emt 0:00:23]} 10. Qd2 {[%emt 0:12:15]} Bg4 {[%emt 0:09:21]} 11. dxe5 {[%emt 0:11:18]} dxe5 {[%emt 0:00:06]} 12. Ne1 {[%emt 0:02:14]} Nd7 $11 {[%emt 0:18:26]} 13. Bc4 {[%emt 0:10:51]} Rfe8 {[%emt 0:05:40]} 14. h3 {[%emt 0:05:52]} Be6 {[%emt 0:00:07]} 15. Bxe6 {[%emt 0:00:09]} Rxe6 {[%emt 0:00:21]} 16. Rd1 {[%emt 0:00:18]} Nf8 {[%emt 0:04:05]} 17. Nf3 {[%emt 0:07:58]} Re7 {[%emt 0:12:15]} 18. Qd6 {[%emt 0:12:28]} Ne6 {[%emt 0:03:30]} 19. Rd2 {[%emt 0:07:35]} Nd4 {[%emt 0:04:45]} 20. Qxc7 {[%emt 0:02:17]} Nxf3+ {[%emt 0:00:08]} 21. gxf3 {[%emt 0:00:05]} Rxc7 {[%emt 0:00:05]} 22. Rfd1 {[%emt 0:00:14]} Kf8 {[%emt 0:04:49]} 23. Rd7 {[%emt 0:03:48]} Rxd7 {[%emt 0:01:47]} 24. Rxd7 {[%emt 0:00:02]} b6 {[%emt 0:00:14]} 25. Rc7 {[%emt 0:01:55]} c5 {[%emt 0:00:39]} 26. Nb5 {[%emt 0:00:50]} Bf6 {[%emt 0:14:12]} 27. Nxa7 {[%emt 0:00:45]} Bd8 {[%emt 0:00:36]} 28. Rb7 {[%emt 0:00:24]} Ke8 {[%emt 0:02:43]} 29. b3 {[%emt 0:00:32]} Ng7 {[%emt 0:00:42]} 30. Nc6 {[%emt 0:00:22]} Ne6 {[%emt 0:04:12]} 31. Nxe5 {[%emt 0:00:08]} Bc7 {[%emt 0:00:54]} 32. Nc4 {[%emt 0:00:42]} Kd8 {[%emt 0:01:16]} 33. Nxb6 {[%emt 0:00:19]} Bxb6 {[%emt 0:00:58]} 34. Rxb6 {[%emt 0:00:03]} c4 {[%emt 0:00:04]} 35. Rb7 {[%emt 0:00:18]} Ke8 {[%emt 0:02:00]} 36. f4 {[%emt 0:02:17]} h5 {[%emt 0:00:21]} 37. f5 {[%emt 0:00:00]} gxf5 {[%emt 0:00:33]} 38. exf5 {[%emt 0:00:00]} Ng7 {[%emt 0:00:56]} 39. f6 {[%emt 0:00:00]} Nf5 {[%emt 0:00:09]} 40. Bc5 {[%emt 0:01:09]} Nh4 {[%emt 0:00:43]} 41. Re7+ {[%emt 0:30:28]} 1-0

[Event "LEM Sachsen-Anhalt Masters 2024"]
[Site "Merseburg"]
[Date "2024.02.09"]
[Round "3.7"]
[White "Polzin, Gustav"]
[Black "Schellmann, Frank"]
[Result "1/2-1/2"]
[ECO "C54"]
[WhiteElo "1895"]
[BlackElo "1923"]
[Annotator "NA RC"]
[PlyCount "60"]
[EventDate "2024.02.01"]
[EventType "swiss"]
[EventCountry "GER"]
[SourceTitle "playchess.com"]
[Source "ChessBase"]
[SourceQuality "1"]
[TimeControl "40/5400+30:1800+30"]

1. e4 {[%emt 1:31:00]} e5 {[%emt 1:31:00]} 2. Nf3 {[%emt 0:00:30]} Nc6 {[%emt 0:00:30]} 3. Bc4 {[%emt 0:00:30]} Nf6 {[%emt 0:00:30]} 4. d3 {[%emt 0:00:30]} Bc5 {[%emt 0:00:30]} 5. c3 {[%emt 0:00:30]} O-O {[%emt 0:00:30]} 6. O-O {[%emt 0:00:30]} a6 {[%emt 0:00:30]} 7. Re1 {[%emt 0:00:30]} d6 {[%emt 0:00:30]} 8. a4 {[%emt 0:00:30]} h6 {[%emt 0:00:30]} 9. Na3 {[%emt 0:00:30]} Re8 {[%emt 0:00:30]} 10. b4 {[%emt 0:00:30]} Ba7 {[%emt 0:00:30]} 11. Nc2 {[%emt 0:00:30]} Be6 {[%emt 0:00:30]} 12. Bxe6 {[%emt 0:00:30]} Rxe6 {[%emt 0:00:30]} 13. Be3 {[%emt 0:00:30]} Bxe3 {[%emt 0:00:30]} 14. Nxe3 {[%emt 0:00:30]} d5 {[%emt 0:00:30]} 15. exd5 {[%emt 0:00:30]} Nxd5 {[%emt 0:00:30]} 16. Qc2 {[%emt 0:00:30]} Nxe3 {[%emt 0:00:30]} 17. fxe3 {[%emt 0:00:30]} Qd7 {[%emt 0:00:30]} (17... e4 $5 18. dxe4 Qe7 $11) 18. Rad1 $11 {[%emt 0:00:30]} b5 {[%emt 0:00:30]} 19. e4 {[%emt 0:00:30]} Rd6 {[%emt 0:00:30]} 20. Re3 {[%emt 0:00:30]} Re8 {[%emt 0:00:30]} 21. a5 {[%emt 0:00:30]} Nd8 {[%emt 0:00:30]} 22. d4 {[%emt 0:00:30]} exd4 {[%emt 0:00:30]} 23. cxd4 {[%emt 0:00:30]} f6 {[%emt 0:00:30]} 24. Qb3+ {[%emt 0:00:30]} Qf7 {[%emt 0:00:30]} 25. Qxf7+ {[%emt 0:00:30]} Nxf7 {[%emt 0:00:30]} 26. Rc1 {[%emt 0:00:30]} c6 {[%emt 0:00:30]} 27. Kf2 {[%emt 0:00:30]} Ng5 {[%emt 0:00:30]} 28. Nxg5 {[%emt 0:00:30]} hxg5 {[%emt 0:00:30]} 29. Rd1 {[%emt 0:00:30]} Red8 {[%emt 0:00:30]} 30. Red3 {[%emt 0:00:30]} Kf7 {[%emt 0:00:30]} 1/2-1/2

[Event "LEM Sachsen-Anhalt Masters 2024"]
[Site "Merseburg"]
[Date "2024.02.09"]
[Round "4.1"]
[White "Ahmed, Daniel"]
[Black "Groebel, Aaron"]
[Result "1/2-1/2"]
[ECO "D32"]
[WhiteElo "1994"]
[BlackElo "2087"]
[Annotator "NA RC"]
[PlyCount "46"]
[EventDate "2024.02.01"]
[EventType "swiss"]
[EventCountry "GER"]
[SourceTitle "playchess.com"]
[Source "ChessBase"]
[SourceQuality "1"]
[TimeControl "40/5400+30:1800+30"]

{[%evp 24,41,41,40,53,24,35,22,27,4,32767,0,3,-4,-8,-4,-5,-3,19,8]} 1. d4 {[%emt 0:00:11]} Nf6 {[%emt 0:00:11]} 2. c4 {[%emt 0:00:22]} c5 {[%emt 0:00:55]} 3. Nf3 {[%emt 0:00:13]} cxd4 {[%emt 0:03:32]} 4. Nxd4 {[%emt 0:00:04]} e6 {[%emt 0:00:10]} 5. Nc3 {[%emt 0:01:26]} Be7 {[%emt 0:01:58]} 6. e3 {[%emt 0:00:36]} O-O {[%emt 0:00:55]} 7. Be2 {[%emt 0:00:27]} d5 {[%emt 0:06:16]} 8. cxd5 {[%emt 0:03:27]} exd5 {[%emt 0:00:51]} 9. O-O {[%emt 0:00:25]} Nc6 {[%emt 1:20:12]} 10. b3 {[%emt 0:01:26]} Be6 {[%emt 0:00:00]} 11. Bb2 {[%emt 0:00:23]} Rc8 {[%emt 0:00:00] D32: Tarrasch Defence: Sidelines and lines without g3.} 12. Rc1 {[%emt 0:01:44]} Nxd4 {[%emt 0:00:00]} 13. Qxd4 {[%emt 0:00:04]} Bc5 {[%emt 0:00:00]} 14. Qh4 {[%emt 0:00:27]} (14. Qd3 $14) 14... Ne4 {[%emt 0:00:00]} 15. Qxd8 {[%emt 0:02:07]} Rfxd8 {[%emt 0:00:00]} 16. Na4 {[%emt 0:00:34]} Bb4 {[%emt 0:00:00]} 17. Rxc8 {[%emt 0:06:00]} Rxc8 {[%emt 0:00:00]} 18. Rc1 {[%emt 0:00:13]} Rxc1+ {[%emt 0:00:00]} 19. Bxc1 {[%emt 0:00:03]} Bd7 {[%emt 0:00:00]} 20. f3 $11 {[%emt 0:00:46]} Nd6 {[%emt 0:00:00]} 21. Nb2 {[%emt 0:00:37]} Nb5 {[%emt 0:00:00]} 22. Nd1 {[%emt 0:00:13]} Nc3 {[%emt 0:00:00]} 23. Nxc3 {[%emt 0:00:46]} Bxc3 {[%emt 0:00:00]} 1/2-1/2

[Event "LEM Sachsen-Anhalt Masters 2024"]
[Site "Merseburg"]
[Date "2024.02.09"]
[Round "4.2"]
[White "Haubold, Sebastian"]
[Black "Malek, Daniel"]
[Result "0-1"]
[ECO "C03"]
[WhiteElo "2055"]
[BlackElo "2307"]
[Annotator "ChessBase"]
[PlyCount "92"]
[EventDate "2024.02.01"]
[EventType "swiss"]
[EventCountry "GER"]
[SourceTitle "playchess.com"]
[Source "ChessBase"]
[SourceQuality "1"]
[TimeControl "40/5400+30:1800+30"]

1. e4 {[%emt 0:00:03]} e6 {[%emt 0:00:04]} 2. d4 {[%emt 0:00:10]} d5 {[%emt 0:00:04]} 3. Nd2 {[%emt 0:00:07]} Be7 {[%emt 0:00:04]} 4. e5 {[%emt 0:00:05]} c5 {[%emt 0:00:04]} 5. c3 {[%emt 0:00:06]} cxd4 {[%emt 0:00:32]} 6. cxd4 {[%emt 0:00:07]} Qb6 {[%emt 0:00:06]} 7. Ndf3 {[%emt 0:04:53]} Bb4+ {[%emt 0:00:08]} 8. Bd2 {[%emt 0:00:25]} Nc6 {[%emt 0:00:14]} 9. Bxb4 {[%emt 0:06:25]} Qxb4+ {[%emt 0:00:13]} 10. Qd2 {[%emt 0:00:06]} Qxd2+ {[%emt 0:00:45]} 11. Kxd2 {[%emt 0:00:16]} Bd7 {[%emt 0:03:22]} 12. Rc1 {[%emt 0:05:03]} f6 {[%emt 0:04:46]} 13. exf6 {[%emt 0:07:41]} gxf6 {[%emt 0:01:06]} 14. Nh3 {[%emt 0:04:26]} Ke7 {[%emt 0:01:31]} 15. Bb5 {[%emt 0:07:31]} Kd6 {[%emt 0:02:16]} 16. Rhe1 {[%emt 0:01:06]} Nge7 {[%emt 0:01:21]} 17. b4 {[%emt 0:18:31]} Rhf8 {[%emt 0:07:17]} 18. Bxc6 {[%emt 0:10:34]} Nxc6 {[%emt 0:00:37]} 19. Kc3 {[%emt 0:06:37]} Rac8 {[%emt 0:15:21]} 20. Kb3 {[%emt 0:00:59]} e5 {[%emt 0:01:00]} 21. Rcd1 {[%emt 0:04:07]} Bxh3 {[%emt 0:04:15]} 22. gxh3 {[%emt 0:00:13]} e4 {[%emt 0:00:06]} 23. Nh4 {[%emt 0:00:27]} Ne7 {[%emt 0:00:57]} 24. Re3 {[%emt 0:04:04]} Rc7 {[%emt 0:06:23]} 25. Rc3 {[%emt 0:06:00]} Rxc3+ {[%emt 0:01:47]} 26. Kxc3 {[%emt 0:00:11]} f5 {[%emt 0:00:44]} 27. f4 {[%emt 0:01:46]} Rf6 {[%emt 0:06:24]} 28. Ng2 {[%emt 0:02:40]} Rh6 {[%emt 0:00:08]} 29. h4 {[%emt 0:00:11]} Ng6 {[%emt 0:00:17]} 30. Rg1 {[%emt 0:00:44]} Nxh4 {[%emt 0:04:42]} 31. Ne3 {[%emt 0:00:12]} Rg6 {[%emt 0:02:04]} 32. Rg3 {[%emt 0:00:09]} Ke6 {[%emt 0:01:00]} 33. Rh3 {[%emt 0:00:13]} Ng2 {[%emt 0:05:35]} 34. Nxg2 {[%emt 0:00:38]} Rxg2 {[%emt 0:00:06]} 35. Rh6+ {[%emt 0:00:41]} Kf7 {[%emt 0:00:59]} 36. Rxh7+ {[%emt 0:00:05]} Rg7 {[%emt 0:00:06]} 37. Rh5 {[%emt 0:01:27]} Kg6 {[%emt 0:01:37]} 38. Rg5+ {[%emt 0:01:24]} Kf6 {[%emt 0:00:09]} 39. h4 {[%emt 0:00:11]} Rc7+ {[%emt 0:02:13]} 40. Kb3 {[%emt 0:01:27]} e3 {[%emt 0:03:29]} 41. Rg2 {[%emt 0:33:03]} Re7 {[%emt 0:30:31]} 42. Re2 {[%emt 0:00:40]} Kg6 {[%emt 0:00:04]} 43. Kc2 {[%emt 0:01:03]} Kh5 {[%emt 0:00:03]} 44. Kd1 {[%emt 0:00:31]} Re4 {[%emt 0:02:55]} 45. Rg2 {[%emt 0:01:49]} Rxd4+ {[%emt 0:00:13]} 46. Ke1 {[%emt 0:00:41]} Rxf4 {[%emt 0:00:24]} 0-1

[Event "LEM Sachsen-Anhalt Masters 2024"]
[Site "Merseburg"]
[Date "2024.02.09"]
[Round "4.3"]
[White "Haubold, Christian"]
[Black "Noennig, Jakob"]
[Result "1-0"]
[ECO "C54"]
[WhiteElo "1990"]
[BlackElo "1789"]
[Annotator "NA RC"]
[PlyCount "131"]
[EventDate "2024.02.01"]
[EventType "swiss"]
[EventCountry "GER"]
[SourceTitle "playchess.com"]
[Source "ChessBase"]
[SourceQuality "1"]
[TimeControl "40/5400+30:1800+30"]

1. e4 {[%emt 0:01:23]} e5 {[%emt 0:00:06]} 2. Nf3 {[%emt 0:00:15]} Nc6 {[%emt 0:00:08]} 3. Bc4 {[%emt 0:00:26]} Bc5 {[%emt 0:00:07]} 4. c3 {[%emt 0:00:26]} Nf6 {[%emt 0:00:10]} 5. d3 {[%emt 0:00:08]} a6 {[%emt 0:02:10]} 6. a4 {[%emt 0:02:01]} d6 {[%emt 0:00:28]} 7. Bg5 {[%emt 0:02:42]} h6 {[%emt 0:13:15]} 8. Bh4 {[%emt 0:00:28]} Be6 {[%emt 0:03:21]} 9. Bb3 {[%emt 0:07:29]} Qd7 {[%emt 0:09:24]} 10. Bc2 {[%emt 0:06:44]} g5 {[%emt 0:04:22]} 11. Bg3 {[%emt 0:00:38]} Ba7 {[%emt 0:01:31]} 12. Na3 {[%emt 0:03:59]} Nh5 $15 {[%emt 0:08:15]} 13. Nc4 {[%emt 0:27:51]} Nf4 {[%emt 0:21:42]} 14. Bxf4 {[%emt 0:03:33]} gxf4 {[%emt 0:00:47]} 15. h3 {[%emt 0:00:51]} Rg8 {[%emt 0:04:03]} 16. Rh2 {[%emt 0:00:51]} f6 {[%emt 0:14:16]} 17. Nfd2 {[%emt 0:12:52]} Rg5 {[%emt 0:02:09]} 18. Nf3 {[%emt 0:02:09]} Rg6 {[%emt 0:03:52]} 19. Qe2 {[%emt 0:03:32]} O-O-O {[%emt 0:00:57]} 20. b4 {[%emt 0:04:01]} d5 {[%emt 0:03:17]} 21. exd5 {[%emt 0:01:49]} Qxd5 {[%emt 0:01:14]} 22. b5 {[%emt 0:02:36]} Nb8 {[%emt 0:00:44]} 23. Bb3 {[%emt 0:02:48]} Qc5 {[%emt 0:02:32]} 24. d4 {[%emt 0:05:47]} Qe7 {[%emt 0:00:35]} 25. dxe5 {[%emt 0:02:14]} Bxc4 {[%emt 0:00:27]} 26. Bxc4 {[%emt 0:00:09]} fxe5 {[%emt 0:01:24]} 27. Nxe5 {[%emt 0:00:12]} Rgd6 {[%emt 0:01:38]} 28. Nf7 {[%emt 0:02:25]} Bxf2+ {[%emt 0:01:01]} 29. Kf1 {[%emt 0:00:54]} Be3 {[%emt 0:00:33]} 30. Nxd6+ {[%emt 0:00:31]} Qxd6 {[%emt 0:00:29]} 31. Qg4+ {[%emt 0:01:23]} Nd7 {[%emt 0:00:27]} 32. bxa6 {[%emt 0:01:01]} bxa6 {[%emt 0:00:33]} 33. Rd1 {[%emt 0:00:59]} Qc6 {[%emt 0:00:30]} 34. Qe6 {[%emt 0:00:16]} Qc5 {[%emt 0:00:31]} 35. Bxa6+ {[%emt 0:00:18]} Kb8 {[%emt 0:00:03]} 36. Rxd7 {[%emt 0:00:16]} Rf8 {[%emt 0:00:50]} 37. Qb3+ {[%emt 0:00:10]} Qb6 {[%emt 0:00:26]} 38. Qxb6+ {[%emt 0:00:06]} Bxb6 {[%emt 0:00:06]} 39. Ke2 {[%emt 0:01:10]} Re8+ {[%emt 0:01:02]} 40. Kf3 {[%emt 0:00:13]} Bc5 {[%emt 0:00:16]} 41. Rh1 {[%emt 0:30:55]} Bd6 {[%emt 0:30:31]} 42. Rxd6 {[%emt 0:00:59]} cxd6 {[%emt 0:00:09]} 43. Kxf4 {[%emt 0:00:05]} Kc7 {[%emt 0:00:20]} 44. Rb1 {[%emt 0:00:40]} Rf8+ {[%emt 0:00:15]} 45. Ke4 {[%emt 0:00:42]} Rf2 {[%emt 0:00:20]} 46. Rb7+ {[%emt 0:00:26]} Kc6 {[%emt 0:00:11]} 47. Rh7 {[%emt 0:00:09]} Rxg2 {[%emt 0:00:45]} 48. Rxh6 {[%emt 0:00:08]} Kc5 {[%emt 0:00:16]} 49. Bb5 {[%emt 0:00:26]} Rd2 {[%emt 0:01:22]} 50. h4 {[%emt 0:00:21]} Rd5 {[%emt 0:00:00]} 51. c4 {[%emt 0:00:00]} Re5+ {[%emt 0:00:00]} 52. Kf4 {[%emt 0:00:00]} Re1 {[%emt 0:00:00]} 53. Rh8 {[%emt 0:00:00]} Rf1+ {[%emt 0:00:00]} 54. Kg5 {[%emt 0:00:00]} Rg1+ {[%emt 0:00:00]} 55. Kh6 {[%emt 0:00:00]} Kd4 {[%emt 0:00:00]} 56. Re8 {[%emt 0:00:00]} d5 {[%emt 0:00:00]} 57. Rd8 {[%emt 0:00:00]} Ke5 {[%emt 0:00:00]} 58. Rxd5+ {[%emt 0:00:00]} Kf6 {[%emt 0:00:00]} 59. Rg5 {[%emt 0:00:00]} Rh1 {[%emt 0:00:00]} 60. Rg6+ {[%emt 0:00:00]} Kf7 {[%emt 0:00:00]} 61. h5 {[%emt 0:00:00]} Rh2 {[%emt 0:00:00]} 62. a5 {[%emt 0:00:00]} Ra2 {[%emt 0:00:00]} 63. a6 {[%emt 0:00:00]} Ra1 {[%emt 0:00:00]} 64. a7 {[%emt 0:00:00]} Kf8 {[%emt 0:00:00]} 65. Rg7 {[%emt 0:00:00]} Ra4 {[%emt 0:00:00]} 66. Bc6 {[%emt 0:00:00]} 1-0

[Event "LEM Sachsen-Anhalt Masters 2024"]
[Site "Merseburg"]
[Date "2024.02.09"]
[Round "4.4"]
[White "Lippert, Daniel"]
[Black "Polzin, Gustav"]
[Result "0-1"]
[ECO "B12"]
[WhiteElo "2034"]
[BlackElo "1895"]
[Annotator "NA"]
[PlyCount "98"]
[EventDate "2024.02.01"]
[EventType "swiss"]
[EventCountry "GER"]
[SourceTitle "playchess.com"]
[Source "ChessBase"]
[SourceQuality "1"]
[TimeControl "40/5400+30:1800+30"]

1. e4 {[%emt 0:00:03]} c6 {[%emt 0:00:10]} 2. d4 {[%emt 0:00:06]} d5 {[%emt 0:00:06]} 3. e5 {[%emt 0:00:05]} Bf5 {[%emt 0:00:19]} 4. h4 {[%emt 0:00:06]} h5 {[%emt 0:00:11]} 5. Bd3 {[%emt 0:00:05]} Bxd3 {[%emt 0:00:10]} 6. Qxd3 {[%emt 0:00:05]} Qa5+ {[%emt 0:00:33]} 7. Nd2 {[%emt 0:00:07]} e6 {[%emt 0:00:24]} 8. Ngf3 {[%emt 0:01:07]} Qa6 {[%emt 0:01:54]} 9. c4 {[%emt 0:00:07]} Ne7 {[%emt 0:00:51]} 10. O-O {[%emt 0:11:48]} Nf5 {[%emt 0:00:40]} 11. b3 {[%emt 0:00:04]} Be7 {[%emt 0:00:49]} 12. a4 {[%emt 0:01:31]} c5 {[%emt 0:13:04]} 13. dxc5 {[%emt 0:18:34]} Bxc5 {[%emt 0:10:37]} 14. Qb1 $1 {[%emt 0:05:02]} Ng3 {[%emt 0:03:15] [#]} 15. b4 $14 {[%emt 0:04:00]} Nxf1 {[%emt 0:01:31]} 16. Nxf1 {[%emt 0:01:31]} Be7 {[%emt 0:00:54]} 17. c5 {[%emt 0:00:26]} Qc4 {[%emt 0:03:04]} 18. Bg5 {[%emt 0:19:38]} Bxg5 {[%emt 0:02:28]} 19. Nxg5 {[%emt 0:11:01]} Qxh4 {[%emt 0:01:45]} 20. Nxe6 {[%emt 0:00:45]} fxe6 {[%emt 0:01:59]} 21. Qg6+ {[%emt 0:00:08]} Kf8 {[%emt 0:03:10]} 22. Qxe6 {[%emt 0:02:35]} Nc6 {[%emt 0:05:15]} 23. Ra3 {[%emt 0:12:21]} Nd4 {[%emt 0:00:20]} 24. Qd6+ {[%emt 0:00:04]} Kg8 {[%emt 0:01:02]} 25. Qxd5+ {[%emt 0:01:02]} Kh7 {[%emt 0:01:37]} 26. Rh3 {[%emt 0:01:29]} Qf4 {[%emt 0:04:11]} 27. Ng3 {[%emt 0:08:52]} Rad8 {[%emt 0:04:09]} 28. Qxb7 {[%emt 0:00:30]} Ne2+ {[%emt 0:00:22]} 29. Kh2 {[%emt 0:00:04]} Nxg3 {[%emt 0:03:02]} 30. fxg3 {[%emt 0:00:09]} Qxe5 {[%emt 0:00:37]} 31. Qf7 {[%emt 0:00:21]} Kh6 {[%emt 0:00:14]} 32. c6 {[%emt 0:02:05]} Rhf8 {[%emt 0:02:06]} 33. Qxa7 {[%emt 0:00:36]} Rf1 {[%emt 0:00:36]} 34. Qa6 {[%emt 0:00:29]} Rf6 {[%emt 0:04:15]} 35. Qc4 {[%emt 0:00:32]} Rd1 {[%emt 0:02:34]} 36. c7 {[%emt 0:00:27]} Qe1 {[%emt 0:00:58]} 37. g4 {[%emt 0:00:32]} Qe5+ {[%emt 0:00:55]} 38. Rg3 {[%emt 0:00:28]} h4 {[%emt 0:04:53]} 39. g5+ {[%emt 0:00:03]} Kg6 {[%emt 0:00:12]} 40. Qc2+ {[%emt 0:00:19]} Rf5 {[%emt 0:00:52]} 41. Qxd1 {[%emt 0:04:16]} hxg3+ {[%emt 0:00:16]} 42. Kh3 {[%emt 0:01:59]} Qxc7 {[%emt 0:00:24]} 43. Qd3 {[%emt 0:00:34]} Kxg5 {[%emt 0:02:09]} 44. b5 {[%emt 0:00:40]} Qf4 {[%emt 0:04:52]} 45. Qxg3+ {[%emt 0:00:50]} Qxg3+ {[%emt 0:00:08]} 46. Kxg3 {[%emt 0:00:12]} Rc5 {[%emt 0:00:23]} 47. b6 {[%emt 0:00:56]} Rc3+ {[%emt 0:00:06]} 48. Kf2 {[%emt 0:00:15]} Rb3 {[%emt 0:00:05]} 49. a5 {[%emt 0:00:05]} Rb5 {[%emt 0:00:10]} 0-1

[Event "LEM Sachsen-Anhalt Masters 2024"]
[Site "Merseburg"]
[Date "2024.02.09"]
[Round "4.5"]
[White "Reipsch, Jens"]
[Black "Wenzel, Thomas"]
[Result "1-0"]
[ECO "C56"]
[WhiteElo "2225"]
[BlackElo "1747"]
[Annotator "ChessBase"]
[PlyCount "45"]
[EventDate "2024.02.01"]
[EventType "swiss"]
[EventCountry "GER"]
[SourceTitle "playchess.com"]
[Source "ChessBase"]
[SourceQuality "1"]
[TimeControl "40/5400+30:1800+30"]

1. e4 {[%emt 0:14:21]} e5 {[%emt 0:00:18]} 2. Nf3 {[%emt 0:01:31]} Nc6 {[%emt 0:00:18]} 3. d4 {[%emt 0:00:31]} exd4 {[%emt 0:01:05]} 4. Bc4 {[%emt 0:01:04]} Nf6 {[%emt 0:05:39]} 5. O-O {[%emt 0:01:43]} Bc5 {[%emt 0:05:30]} 6. e5 {[%emt 0:06:41]} d5 {[%emt 0:00:15]} 7. Bb5 {[%emt 0:01:19]} Nd7 {[%emt 0:07:50]} 8. Bxc6 {[%emt 0:08:35]} bxc6 {[%emt 0:00:14]} 9. Bg5 {[%emt 0:05:54]} Be7 {[%emt 0:01:10]} 10. Nxd4 {[%emt 0:03:06]} Nb8 {[%emt 0:10:52]} 11. Bxe7 {[%emt 0:04:18]} Qxe7 {[%emt 0:00:27]} 12. Nc3 {[%emt 0:02:16]} O-O {[%emt 0:02:14]} 13. Re1 {[%emt 0:02:11]} c5 {[%emt 0:03:50]} 14. Nxd5 {[%emt 0:02:42]} Qd8 {[%emt 0:04:46]} 15. Nb3 {[%emt 0:04:15]} Na6 {[%emt 0:03:32]} 16. Ne3 {[%emt 0:02:40]} Qg5 {[%emt 0:02:51]} 17. Qd5 {[%emt 0:03:09]} Rb8 {[%emt 0:08:55]} 18. Nxc5 {[%emt 0:02:33]} Nxc5 {[%emt 0:03:30]} 19. Qxc5 {[%emt 0:00:05]} Rb6 {[%emt 0:00:30]} 20. Rad1 {[%emt 0:06:59]} f5 {[%emt 0:02:07]} 21. f4 {[%emt 0:02:42]} Qxf4 {[%emt 0:01:56]} 22. Nd5 {[%emt 0:00:18]} Qg4 {[%emt 0:01:45]} 23. Nxb6 {[%emt 0:03:51]} 1-0

[Event "LEM Sachsen-Anhalt Masters 2024"]
[Site "Merseburg"]
[Date "2024.02.09"]
[Round "4.6"]
[White "Schulz, Maximilian"]
[Black "Daub, Sebastian"]
[Result "1/2-1/2"]
[ECO "B37"]
[WhiteElo "1896"]
[BlackElo "1967"]
[Annotator "NA RC"]
[PlyCount "35"]
[EventDate "2024.02.01"]
[EventType "swiss"]
[EventCountry "GER"]
[SourceTitle "playchess.com"]
[Source "ChessBase"]
[SourceQuality "1"]
[TimeControl "40/5400+30:1800+30"]

1. e4 {[%emt 0:00:06]} c5 {[%emt 0:00:07]} 2. Nf3 {[%emt 0:00:04]} g6 {[%emt 0:00:05]} 3. d4 {[%emt 0:00:06]} cxd4 {[%emt 0:00:05]} 4. Nxd4 {[%emt 0:00:04]} Bg7 {[%emt 0:00:08]} 5. c4 {[%emt 0:00:07]} Nc6 {[%emt 0:00:04]} 6. Nc2 {[%emt 0:00:42]} (6. Be3 $5) 6... Nf6 {[%emt 0:00:28]} 7. Nc3 {[%emt 0:00:08]} O-O {[%emt 0:00:16]} 8. Be2 {[%emt 0:01:20]} d6 {[%emt 0:02:42]} 9. O-O {[%emt 0:01:27]} Be6 {[%emt 0:01:55]} 10. Rb1 {[%emt 0:02:42]} Rc8 {[%emt 0:02:41]} 11. b3 {[%emt 0:08:16]} Nh5 {[%emt 0:11:47]} 12. Nd5 {[%emt 0:04:56]} Nf6 {[%emt 0:00:11]} 13. f3 {[%emt 0:00:35]} Bxd5 {[%emt 0:03:44]} 14. exd5 {[%emt 0:02:16]} Nb4 $1 {[%emt 0:01:54]} 15. Nxb4 {[%emt 0:10:40]} Qb6+ {[%emt 0:00:12]} 16. Kh1 {[%emt 0:00:08]} Qxb4 {[%emt 0:00:06]} 17. a4 $14 {[%emt 0:09:27]} Nd7 {[%emt 0:17:24]} 18. Be3 {[%emt 0:11:18]} 1/2-1/2